[Event "2nd Asian Nations Team Cup U14 2019"]
[Site "Shenzhen"]
[Date "2019.12.25"]
[Round "9.14"]
[White "Kannappan, Thanneermalai"]
[Black "Xue, Haowen"]
[Result "0-1"]
[ECO "B56"]
[WhiteElo "1495"]
[BlackElo "1909"]
[Annotator "NA RC"]
[PlyCount "72"]
[EventDate "2019.12.19"]
[EventType "team-tourn"]
[EventCountry "CHN"]
[SourceTitle "playchess.com"]
[Source "ChessBase"]
[SourceQuality "1"]
[WhiteTeam "Hong Kong"]
[BlackTeam "China"]
[WhiteTeamCountry "HKG"]
[BlackTeamCountry "CHN"]
[TimeControl "5400+30"]

{[%evp 10,53,32,32767,32767,-27,32767,-15,-19,32767,-35,32767,32767,32767,32767,-31,-20,-25,-3,-68,-57,-92,-125,-106,-106,-110,-110,-131,-150,-148,-130,-215,-194,-375,-395,-476,-522,-708,-747,-981,-1516,-1625,-2049,-2123,-4909,-2252]} 1. e4 {[%emt 0:00:00]} c5 {[%emt 0:00:00]} 2. Nf3 {[%emt 0:00:00]} d6 {[%emt 0:00:00]} 3. d4 {[%emt 0:00:00]} Nf6 {[%emt 0:00:00]} 4. Nc3 {[%emt 0:00:00]} cxd4 {[%emt 0:00:00]} 5. Nxd4 {[%emt 0:00:04]} Bd7 {[%emt 0:00:19]} 6. Be3 {[%emt 0:02:06]} Ng4 {[%emt 0:00:14] B56: Classical Sicilian: Unusual Lines} 7. Qd2 {[%emt 0:01:51]} (7. Bd2 $14) (7. Bg5 h6 8. Bh4 g5 9. Bg3 Bg7 10. h3 Ne5 11. Nf5 Bxf5 12. exf5 Nbc6 13. Nd5 Qd7 14. c3 {1-0 (35) Kulaots,K (2568)-Nevednichy,V (2551) Iasi 2016}) 7... Nxe3 {[%emt 0:00:09]} 8. Qxe3 {[%emt 0:00:19]} Nc6 {[%emt 0:00:17]} 9. Be2 {[%emt 0:03:42]} g6 {[%emt 0:00:34]} 10. O-O {[%emt 0:00:25]} Bg7 {[%emt 0:00:07]} 11. Nb3 {[%emt 0:00:29]} O-O {[%emt 0:00:26]} 12. Rad1 {[%emt 0:01:48]} Rc8 $146 {[%emt 0:06:07]} ({Predecessor:} 12... Ne5 13. h3 Bc6 14. f4 {½-½ (31) Wolf,C (1790)-Moritz,A (1764) Dresden 2008}) 13. f4 {[%emt 0:06:03]} Nb4 {[%emt 0:10:12]} 14. Qd2 {[%emt 0:02:01]} ({White should try} 14. Rd2 $11) 14... Qb6+ {[%emt 0:11:31]} 15. Kh1 {[%emt 0:00:37]} Bxc3 $1 {[%emt 0:01:04]} 16. bxc3 {[%emt 0:00:20]} Nxa2 {[%emt 0:00:11]} 17. c4 {[%emt 0:02:54] [#]} Qb4 $1 {[%emt 0:01:15]} 18. Qxb4 {[%emt 0:02:58]} Nxb4 {[%emt 0:00:05]} 19. c5 {[%emt 0:01:12]} Nxc2 {[%emt 0:03:55]} 20. cxd6 {[%emt 0:01:10]} (20. Rd2 $17 Ne3 21. Rf3) 20... Rfe8 {[%emt 0:03:04]} 21. e5 $2 {[%emt 0:04:41]} (21. dxe7 Rxe7 22. Rc1) 21... Ne3 $1 {[%emt 0:01:53] Double Attack} 22. dxe7 {[%emt 0:01:04]} Nxd1 {[%emt 0:00:17]} 23. Rxd1 {[%emt 0:00:05]} Ba4 {[%emt 0:00:40]} 24. Rd8 {[%emt 0:02:17]} Bxb3 {[%emt 0:01:18]} 25. Rxe8+ {[%emt 0:00:56]} Rxe8 {[%emt 0:00:41]} 26. Bb5 {[%emt 0:00:09]} Rxe7 {[%emt 0:00:10]} 27. Kg1 $19 {[%emt 0:00:09]} a5 {[%emt 0:00:06]} 28. Kf2 {[%emt 0:00:06]} a4 {[%emt 0:00:05]} 29. Bd3 {[%emt 0:00:11]} a3 {[%emt 0:00:06]} 30. Bb1 {[%emt 0:00:06]} Rc7 {[%emt 0:00:08]} 31. Ke3 {[%emt 0:00:13]} Rc1 {[%emt 0:00:06]} 32. Be4 {[%emt 0:00:07]} a2 {[%emt 0:00:09]} 33. Kd4 {[%emt 0:00:07]} a1=Q+ {[%emt 0:00:07]} 34. Kd3 {[%emt 0:00:11]} Qc3+ {[%emt 0:00:09]} 35. Ke2 {[%emt 0:00:04]} Re1+ {[%emt 0:00:12]} 36. Kf2 {[%emt 0:00:04]} Qe3# {[%emt 0:00:07]} 0-1

[Event "2nd Asian Nations Team Cup U14 2019"]
[Site "Shenzhen"]
[Date "2019.12.25"]
[Round "9.15"]
[White "Wang, Xiaozhi"]
[Black "Liu, Fung Ming Mathew"]
[Result "0-1"]
[ECO "D37"]
[WhiteElo "1872"]
[BlackElo "1493"]
[Annotator "NA RC"]
[PlyCount "178"]
[EventDate "2019.12.19"]
[EventType "team-tourn"]
[EventCountry "CHN"]
[SourceTitle "playchess.com"]
[Source "ChessBase"]
[SourceQuality "1"]
[WhiteTeam "China"]
[BlackTeam "Hong Kong"]
[WhiteTeamCountry "CHN"]
[BlackTeamCountry "HKG"]
[TimeControl "5400+30"]

{[%evp 12,178,58,31,27,37,32767,32767,-9,-26,32767,-19,32767,-27,-17,-77,-63,-87,-86,-93,-73,-92,-64,-122,-110,-125,-120,-192,-193,-208,-91,-89,-99,-93,0,0,0,32767,-8,-34,-13,-24,-34,-35,0,0,0,-54,-26,-26,0,0,15,8,28,32,23,-64,-64,-82,-69,-79,-17,-75,-90,-99,-4,-12,-9,-60,-78,-90,-87,-88,-66,-73,-43,-79,-49,-130,-122,-508,-247,-581,-278,-308,-352,-364,-442,-517,-379,-313,-350,-349,-382,-439,0,-335,-396,-438,0,-180,-62,-337,-28,-507,-264,-257,-184,-192,-155,-170,-20,-224,32767,32767,32767,32767,32767,32767,32767,32767,32767,32767,32767,32767,32767,32767,-74,-175,0,-158,-182,-135,-291,32767,32767,32767,32767,32767,32767,32767,32767,32767,-466,-531,-587,-1770,-656,-552,-675,-613,-1091,-964,-735,-715,-781,-1314,-2110,-817,-10287,-29982,-4631,-4618,-7052,-29980,-29985,-29989,-29990]} 1. d4 {[%emt 0:00:00]} d5 {[%emt 0:00:00]} 2. Bf4 {[%emt 0:00:00]} Nf6 {[%emt 0:00:08]} 3. e3 {[%emt 0:00:00]} c6 {[%emt 0:00:12]} 4. c4 {[%emt 0:00:37]} e6 {[%emt 0:00:18]} 5. Nc3 {[%emt 0:00:04]} Bb4 {[%emt 0:00:49]} 6. Nf3 {[%emt 0:00:31]} Nbd7 {[%emt 0:00:19]} 7. Bd3 {[%emt 0:00:29] D37: Queen's Gambit Declined: 5 Bf4} (7. Qb3 Qa5 8. a3 Bxc3+ 9. Qxc3 Qxc3+ 10. bxc3 Ne4 11. Rc1 b6 12. cxd5 exd5 13. c4 dxc4 14. Bxc4 Bb7 15. Ke2 {½-½ (60) So,W (2780)-Wei,Y (2729) chess.com INT 2018}) 7... dxc4 {[%emt 0:05:10]} 8. Bxc4 {[%emt 0:00:07]} Nd5 {[%emt 0:00:39]} 9. Bxd5 {[%emt 0:02:39]} exd5 {[%emt 0:00:13]} 10. O-O {[%emt 0:00:09]} O-O {[%emt 0:00:12]} 11. Rc1 $146 {[%emt 0:00:28]} ({Predecessor:} 11. a3 Bxc3 12. bxc3 Re8 13. Qd3 Nb6 14. Nd2 Na4 {0-1 (28) Carpenco,V (1391)-Ivas,J (2073) Stari Banovci 2017}) 11... Re8 {[%emt 0:06:14]} 12. a3 {[%emt 0:01:34]} Bf8 {[%emt 0:02:25]} 13. b4 {[%emt 0:08:55]} Nb6 {[%emt 0:00:46]} 14. Ne5 {[%emt 0:07:55]} f6 {[%emt 0:01:37]} 15. Nd3 {[%emt 0:00:07]} Nc4 {[%emt 0:05:14]} 16. a4 {[%emt 0:06:48]} Bf5 {[%emt 0:01:17]} 17. Rb1 {[%emt 0:11:05]} Qe7 {[%emt 0:03:24]} 18. Re1 {[%emt 0:06:49]} Qf7 {[%emt 0:02:33]} 19. Rb3 {[%emt 0:10:30]} (19. h4 $17) 19... Qg6 {[%emt 0:00:56]} 20. Na2 {[%emt 0:01:20]} Bh3 {[%emt 0:07:38]} (20... a5 $19 {has better winning chances.} 21. bxa5 Rxa5) 21. Bg3 {[%emt 0:01:03]} Bg4 {[%emt 0:00:57]} 22. Qc1 {[%emt 0:02:59]} Bd6 {[%emt 0:06:34]} ({Better is} 22... h5 $17 23. Qc3 Rac8) 23. Bxd6 {[%emt 0:05:07]} Nxd6 {[%emt 0:00:09]} 24. Nf4 {[%emt 0:00:03]} Qf7 {[%emt 0:04:18]} 25. Nc3 {[%emt 0:02:11]} Bf5 {[%emt 0:02:05]} 26. b5 {[%emt 0:10:06]} g5 {[%emt 0:02:52]} 27. Nfe2 {[%emt 0:00:08]} Nc4 {[%emt 0:03:51]} 28. Ng3 {[%emt 0:03:32]} Bg6 {[%emt 0:02:37]} 29. Nf1 {[%emt 0:03:22]} Na5 {[%emt 0:01:31]} 30. Ra3 {[%emt 0:01:01]} Nc4 {[%emt 0:00:15]} 31. Ra1 {[%emt 0:00:06]} Qf8 {[%emt 0:05:32]} 32. Nd2 {[%emt 0:01:37]} Bd3 {[%emt 0:00:27]} 33. Nxc4 {[%emt 0:00:26]} dxc4 {[%emt 0:01:54]} 34. e4 {[%emt 0:07:27]} ({White should try} 34. Nd1 $11) 34... Qd6 {[%emt 0:01:45]} 35. d5 {[%emt 0:03:30]} cxd5 {[%emt 0:00:46]} 36. exd5 {[%emt 0:00:04]} Rxe1+ {[%emt 0:00:42]} (36... Kf7 $17) 37. Qxe1 {[%emt 0:00:09]} Kf7 {[%emt 0:00:36]} 38. Qe3 {[%emt 0:01:38]} Qe5 {[%emt 0:01:20]} (38... Re8 $17 39. Qd2 (39. Qxa7 $2 Qe5 $19) 39... h5) 39. Qxe5 {[%emt 0:01:27]} fxe5 {[%emt 0:00:45]} 40. f3 {[%emt 0:01:14]} (40. Re1 $11) 40... Ke7 {[%emt 0:00:31]} 41. Re1 {[%emt 0:00:23]} Kd6 {[%emt 0:00:09]} 42. Kf2 {[%emt 0:00:59]} Re8 {[%emt 0:00:23]} 43. Ke3 {[%emt 0:01:32]} h6 {[%emt 0:00:27]} 44. Rc1 {[%emt 0:00:54]} Rf8 {[%emt 0:00:43]} 45. g3 {[%emt 0:00:37]} (45. Ne4+ $142 Kxd5 46. Rd1) 45... Kc5 {[%emt 0:00:22]} 46. Na2 $2 {[%emt 0:00:43]} (46. Ne4+ $17 {is more resistant.} Kb4 47. Nf2) 46... b6 {[%emt 0:00:31]} (46... g4 $142 47. fxg4 e4) 47. Rc3 $2 {[%emt 0:00:29]} (47. Re1 {was the crucial defense.}) 47... Re8 {[%emt 0:00:25]} 48. Nc1 {[%emt 0:00:26]} e4 {[%emt 0:00:53]} 49. f4 {[%emt 0:00:34]} gxf4+ {[%emt 0:00:16]} 50. gxf4 {[%emt 0:00:04]} Kxd5 {[%emt 0:00:13]} 51. Na2 {[%emt 0:00:20] [#]} Kc5 $1 {[%emt 0:00:13]} 52. Rc1 $1 $11 {[%emt 0:00:30] and White has nothing to worry.} Rg8 {[%emt 0:00:14]} 53. Nc3 {[%emt 0:00:53]} Re8 $2 {[%emt 0:00:21]} (53... Kb4 $19 54. f5 Kb3) 54. f5 $2 $11 {[%emt 0:00:42] and White is okay.} Kb4 {[%emt 0:00:59]} 55. Nd5+ {[%emt 0:00:35]} Kc5 $2 {[%emt 0:00:38]} ({Black should play} 55... Kb3 $19 56. Nc7 Re7) 56. Nc7 $2 {[%emt 0:00:05]} Re7 {[%emt 0:01:01]} (56... Re5 $19 57. Ne6+ Kb4) 57. Ne6+ $2 {[%emt 0:00:36]} (57. Na6+ $1 $15 Kd6 58. Nb4) 57... Kd6 $2 {[%emt 0:01:07]} (57... Kb4 $19 58. Nd4 Rd7) 58. Kf4 $2 {[%emt 0:00:48]} (58. Nf4 $11 {and White stays safe.}) 58... Rf7 {[%emt 0:00:35]} 59. Nd8 {[%emt 0:00:26]} Rf6 {[%emt 0:01:09]} 60. Nc6 {[%emt 0:00:27]} e3 {[%emt 0:03:11]} 61. Kxe3 {[%emt 0:00:24]} Rxf5 {[%emt 0:00:32]} ({Black should play} 61... a5 $17 62. Nd4 Kc5) 62. Nxa7 $2 {[%emt 0:00:40]} (62. Nb4 $1 $11 {and White is okay.}) 62... Kc5 {[%emt 0:00:46]} 63. Nc6 {[%emt 0:00:13]} Bf1 {[%emt 0:00:47]} 64. Ke4 {[%emt 0:00:46]} Rf2 {[%emt 0:01:14]} 65. h4 {[%emt 0:00:31]} Bg2+ {[%emt 0:01:04]} 66. Ke3 {[%emt 0:00:13]} Rf6 {[%emt 0:00:52]} 67. Ne5 {[%emt 0:00:41]} Re6 {[%emt 0:00:16]} 68. Kf4 {[%emt 0:00:03]} Bd5 {[%emt 0:00:33]} 69. Kf5 {[%emt 0:00:44]} Re7 {[%emt 0:03:03]} 70. Kf6 {[%emt 0:00:27] [#]} (70. h5 $17) 70... Re6+ $2 {[%emt 0:00:42]} ({Black should try} 70... Re8 $1 $17 71. Nd7+ Kb4) 71. Kf5 {[%emt 0:00:05] [#]} Rd6 $1 {[%emt 0:00:39]} 72. Nd3+ {[%emt 0:01:14]} Kd4 {[%emt 0:00:15]} 73. Nf4 {[%emt 0:00:04]} Be4+ {[%emt 0:01:07]} 74. Kg4 {[%emt 0:00:24]} Kc5 {[%emt 0:00:39]} 75. Ne2 {[%emt 0:00:42]} h5+ {[%emt 0:01:24]} 76. Kf4 {[%emt 0:00:06]} Bd3 {[%emt 0:00:14]} 77. Ng3 {[%emt 0:01:17]} Rd4+ {[%emt 0:00:30]} 78. Ke5 {[%emt 0:00:20]} (78. Kf3 $142 Rxh4 79. Kf2) 78... Rxh4 {[%emt 0:00:24]} 79. Nh1 {[%emt 0:00:29]} Rh2 {[%emt 0:00:44]} (79... Re4+ $142 80. Kf6 Kb4) 80. Ng3 {[%emt 0:00:13]} Rf2 {[%emt 0:00:18]} 81. Ne4+ {[%emt 0:00:25]} Bxe4 $1 {[%emt 0:00:14]} 82. Kxe4 {[%emt 0:00:05]} Rg2 {[%emt 0:00:30]} 83. Rf1 {[%emt 0:00:27]} h4 {[%emt 0:00:46]} 84. Rf6 {[%emt 0:00:21]} h3 {[%emt 0:01:02]} 85. Rc6+ {[%emt 0:00:25]} Kb4 {[%emt 0:00:05]} 86. Rxb6 {[%emt 0:00:05]} h2 {[%emt 0:00:10]} 87. Rh6 {[%emt 0:00:04]} c3 {[%emt 0:01:16]} 88. b6 {[%emt 0:00:10]} c2 {[%emt 0:00:12]} 89. b7 {[%emt 0:00:29]} Rg8 {[%emt 0:00:06]} 0-1

[Event "2nd Asian Nations Team Cup U14 2019"]
[Site "Shenzhen"]
[Date "2019.12.25"]
[Round "9.16"]
[White "Lee, Gerent Chak Yan"]
[Black "Lu, Miaoyi"]
[Result "1/2-1/2"]
[ECO "D11"]
[WhiteElo "1450"]
[BlackElo "1787"]
[Annotator "NA RC"]
[PlyCount "126"]
[EventDate "2019.12.19"]
[EventType "team-tourn"]
[EventCountry "CHN"]
[SourceTitle "playchess.com"]
[Source "ChessBase"]
[SourceQuality "1"]
[WhiteTeam "Hong Kong"]
[BlackTeam "China"]
[WhiteTeamCountry "HKG"]
[BlackTeamCountry "CHN"]
[TimeControl "5400+30"]

1. d4 {[%emt 0:00:00]} d5 {[%emt 0:00:00]} 2. c4 {[%emt 0:00:00]} c6 {[%emt 0:00:00]} 3. Nf3 {[%emt 0:00:00]} Nf6 {[%emt 0:00:00]} 4. g3 {[%emt 0:00:00]} dxc4 {[%emt 0:00:00]} 5. Bg2 {[%emt 0:00:05]} Nbd7 {[%emt 0:00:08]} 6. O-O {[%emt 0:00:08]} g6 {[%emt 0:00:07]} 7. Qc2 {[%emt 0:01:15]} Nb6 {[%emt 0:00:56]} 8. a4 {[%emt 0:00:52]} a5 {[%emt 0:00:06]} 9. e4 {[%emt 0:00:46]} Bg7 {[%emt 0:00:11]} 10. Na3 {[%emt 0:01:59]} O-O {[%emt 0:03:08]} 11. Be3 {[%emt 0:01:16]} Ne8 {[%emt 0:16:33]} 12. Nxc4 {[%emt 0:02:22]} Nxc4 {[%emt 0:00:02]} 13. Qxc4 {[%emt 0:00:08]} Nd6 {[%emt 0:02:56]} 14. Qc2 {[%emt 0:00:30]} Kh8 {[%emt 0:03:21]} 15. Rac1 {[%emt 0:02:52]} f5 {[%emt 0:05:06]} 16. e5 {[%emt 0:00:44]} Ne8 {[%emt 0:01:11]} 17. Ne1 {[%emt 0:09:48]} Nc7 {[%emt 0:03:08]} 18. Nd3 {[%emt 0:05:05]} Nd5 {[%emt 0:01:49]} 19. Qc5 {[%emt 0:02:42]} Be6 {[%emt 0:04:00]} 20. Bg5 {[%emt 0:02:11]} Re8 {[%emt 0:05:43]} 21. Nf4 {[%emt 0:01:14]} Nxf4 {[%emt 0:03:01]} 22. Bxf4 {[%emt 0:00:07]} Rc8 {[%emt 0:02:38]} 23. Rfd1 {[%emt 0:05:18]} Bb3 {[%emt 0:02:49]} 24. Rd2 {[%emt 0:03:17]} Bxa4 {[%emt 0:02:00]} 25. Qa7 {[%emt 0:03:49]} b6 {[%emt 0:03:31]} 26. d5 {[%emt 0:01:53]} cxd5 {[%emt 0:03:36]} 27. Rxc8 {[%emt 0:05:30]} Qxc8 {[%emt 0:00:02]} 28. Qxb6 {[%emt 0:00:25]} e6 {[%emt 0:05:57]} 29. Qxa5 {[%emt 0:00:21]} Qc6 {[%emt 0:02:14]} 30. Bf1 {[%emt 0:02:16]} Ra8 {[%emt 0:02:16]} 31. Qc3 {[%emt 0:02:38]} Qxc3 {[%emt 0:01:20]} 32. bxc3 {[%emt 0:00:05]} h6 {[%emt 0:06:29]} 33. h4 {[%emt 0:02:14]} Rc8 {[%emt 0:03:28]} 34. Ra2 {[%emt 0:01:30]} Be8 {[%emt 0:10:10]} 35. Rc2 {[%emt 0:01:30]} d4 {[%emt 0:01:20]} 36. c4 {[%emt 0:00:50]} Bc6 {[%emt 0:01:50]} 37. Rd2 {[%emt 0:01:13]} Rd8 {[%emt 0:00:05]} 38. Bg2 {[%emt 0:01:06]} Be4 {[%emt 0:01:22]} 39. c5 {[%emt 0:03:06]} d3 {[%emt 0:00:38]} 40. c6 {[%emt 0:04:32]} Bf8 {[%emt 0:01:32]} 41. Be3 {[%emt 0:01:41]} Bb4 {[%emt 0:01:33]} 42. Rd1 {[%emt 0:00:28]} Kh7 {[%emt 0:01:58]} 43. c7 {[%emt 0:00:38]} Rc8 {[%emt 0:00:11]} 44. Bxe4 {[%emt 0:01:47]} fxe4 {[%emt 0:00:03]} 45. Bb6 {[%emt 0:00:07]} Bc3 {[%emt 0:01:43]} 46. f4 {[%emt 0:01:32]} Rxc7 {[%emt 0:01:56]} 47. Bxc7 {[%emt 0:00:48]} e3 {[%emt 0:00:04]} 48. Rxd3 {[%emt 0:02:16]} e2 {[%emt 0:00:05]} 49. Re3 {[%emt 0:00:16]} e1=Q+ {[%emt 0:00:45]} 50. Rxe1 {[%emt 0:00:06]} Bxe1 {[%emt 0:00:05]} 51. Kg2 {[%emt 0:00:05]} Kg7 {[%emt 0:00:56]} 52. Bd8 {[%emt 0:00:22]} h5 {[%emt 0:00:24]} 53. Kf3 {[%emt 0:00:07]} Kf7 {[%emt 0:00:16]} 54. g4 {[%emt 0:00:25]} hxg4+ {[%emt 0:01:16]} 55. Kxg4 {[%emt 0:00:04]} Bf2 {[%emt 0:00:22]} 56. Kg5 {[%emt 0:01:13]} Be3 {[%emt 0:00:42]} 57. Ba5 {[%emt 0:01:12]} Bc1 {[%emt 0:00:20]} 58. Bd8 {[%emt 0:00:44]} Bd2 {[%emt 0:00:07]} 59. Kg4 {[%emt 0:00:07]} Bc1 {[%emt 0:00:11]} 60. Bg5 {[%emt 0:00:06]} Bd2 {[%emt 0:00:23]} 61. h5 {[%emt 0:00:22]} gxh5+ {[%emt 0:00:10]} 62. Kxh5 {[%emt 0:00:08]} Bc1 {[%emt 0:00:32]} 63. Kg4 {[%emt 0:04:06]} Kg6 {[%emt 0:01:04]} 1/2-1/2

[Event "2nd Asian Nations Team Cup U14 2019"]
[Site "Shenzhen"]
[Date "2019.12.25"]
[Round "9.18"]
[White "Tsogtbayar, Batlut"]
[Black "Xiao, Tong"]
[Result "0-1"]
[ECO "A70"]
[WhiteElo "1404"]
[BlackElo "1925"]
[Annotator "NA RC"]
[PlyCount "78"]
[EventDate "2019.12.19"]
[EventType "team-tourn"]
[EventCountry "CHN"]
[SourceTitle "playchess.com"]
[Source "ChessBase"]
[SourceQuality "1"]
[WhiteTeam "Mongolia"]
[BlackTeam "China"]
[WhiteTeamCountry "MGL"]
[BlackTeamCountry "CHN"]
[TimeControl "5400+30"]

{[%evp 12,72,71,56,90,32767,32767,32767,32767,32767,32767,32767,50,0,15,32767,19,-12,-3,-29,-28,-101,-86,-110,-90,-102,-115,-226,-197,-305,-322,-303,-325,-339,-360,-329,-375,-394,-422,-485,-505,-587,-680,-666,-643,-686,-651,32767,32767,32767,32767,32767,32767,32767,32767,-711,-751,-824,-729,32767,32767,-4937,-6682]} 1. d4 {[%emt 0:00:00]} Nf6 {[%emt 0:00:00]} 2. Nf3 {[%emt 0:00:07]} e6 {[%emt 0:00:05]} 3. c4 {[%emt 0:00:43]} c5 {[%emt 0:00:39]} 4. d5 {[%emt 0:01:15]} exd5 {[%emt 0:00:23]} 5. cxd5 {[%emt 0:00:29]} d6 {[%emt 0:00:06]} 6. Nc3 {[%emt 0:01:06]} g6 {[%emt 0:00:46]} 7. e4 {[%emt 0:01:04]} a6 {[%emt 0:00:37]} 8. a4 {[%emt 0:00:59]} Bg4 {[%emt 0:00:52]} 9. Bd3 {[%emt 0:01:20]} Bg7 {[%emt 0:00:40]} 10. h3 {[%emt 0:01:17]} Bxf3 {[%emt 0:00:10]} 11. Qxf3 {[%emt 0:00:31]} Nbd7 {[%emt 0:00:50]} 12. Qe2 {[%emt 0:03:21]} O-O {[%emt 0:00:43]} 13. O-O {[%emt 0:00:19]} Re8 {[%emt 0:02:26] A70: Modern Benoni: 6 e4 g6 7 Nf3} (13... Ne5 14. Bc2 Re8 15. f4 Ned7 16. Qf3 c4 17. Be3 Qa5 18. Rae1 b5 19. axb5 axb5 20. Ne2 b4 21. Bd4 {0-1 (39) Zubritskiy,A (2442)-Khalifman,A (2617) Tallinn 2016}) 14. Qc2 {[%emt 0:02:57]} Rc8 {[%emt 0:01:39]} 15. Bc4 $146 {[%emt 0:06:33]} ({Predecessor:} 15. Bf4 c4 16. Be2 Nc5 17. Bf3 Qe7 18. Bg5 Qe5 19. Bh4 Rc7 20. Bg3 Qe7 21. Rfe1 Nfd7 {½-½ (73) Gromova,I (2228)-Iwanow,A (2227) Germany 2015}) 15... Ne5 {[%emt 0:07:09]} 16. Qb3 {[%emt 0:00:46]} (16. Be2 $11 {was the only way to keep the balance.}) 16... Qa5 {[%emt 0:00:59]} 17. Bf4 {[%emt 0:02:34]} Nxc4 {[%emt 0:02:27]} 18. Qxc4 {[%emt 0:00:50]} Qb4 {[%emt 0:00:25]} 19. Qxb4 {[%emt 0:07:23]} (19. Qd3 $17) 19... cxb4 {[%emt 0:00:06]} 20. Nd1 {[%emt 0:03:46]} Rxe4 {[%emt 0:00:18]} 21. Bxd6 {[%emt 0:00:50]} Nxd5 {[%emt 0:00:08]} 22. a5 {[%emt 0:01:32]} Rc2 {[%emt 0:01:16]} 23. Rb1 {[%emt 0:01:29]} Ree2 {[%emt 0:01:05]} 24. b3 {[%emt 0:09:25]} Bd4 {[%emt 0:00:29]} 25. Bg3 {[%emt 0:01:49]} f5 {[%emt 0:00:22]} 26. Bd6 {[%emt 0:01:53]} f4 {[%emt 0:00:23]} 27. Kh1 {[%emt 0:00:27]} Rc6 {[%emt 0:00:31]} 28. Bb8 {[%emt 0:02:07]} Re8 {[%emt 0:00:06]} 29. Nb2 {[%emt 0:00:09]} Rxb8 {[%emt 0:00:16]} 30. Nc4 {[%emt 0:00:16]} Nc3 {[%emt 0:00:16]} 31. Rbe1 {[%emt 0:00:12]} Kf7 {[%emt 0:00:13]} 32. Kh2 {[%emt 0:01:03]} Re8 {[%emt 0:00:16]} 33. Rxe8 {[%emt 0:00:09]} Kxe8 {[%emt 0:00:06]} 34. Re1+ {[%emt 0:00:32]} Kf7 {[%emt 0:00:18]} 35. f3 {[%emt 0:00:16]} Rxc4 {[%emt 0:00:19]} 36. bxc4 {[%emt 0:00:10]} b3 $19 {[%emt 0:00:03]} 37. h4 {[%emt 0:00:14]} b2 {[%emt 0:00:06]} 38. Kh3 {[%emt 0:00:07]} b1=Q {[%emt 0:00:06]} 39. Rxb1 {[%emt 0:00:10]} Nxb1 {[%emt 0:00:05]} 0-1